bitfinex/quotes_BTCUSD_20240811
["timestamp","ask_amount","ask_price","bid_price","bid_amount"]
[1723348194052,0.44768092,61243.0,61242.0,0.0209141]
[1723348196819,0.44925873,61243.0,61242.0,0.0209141]
[1723348197268,0.61254173,61243.0,61242.0,0.0209141]
[1723348197475,1.59555106,61243.0,61242.0,0.0209141]
[1723348197681,2.25295821,61243.0,61242.0,0.0209141]
[1723348197901,2.5795905,61243.0,61242.0,0.0209141]
[1723348199730,1.76264158,61243.0,61242.0,0.0209141]
[1723348199900,0.92557633,61243.0,61242.0,0.0209141]
[1723348200168,1.16448292,61243.0,61242.0,0.0209141]
[1723348200640,1.01753334,61243.0,61242.0,0.0209141]
[1723348200881,0.93306099,61243.0,61242.0,0.0209141]
[1723348201081,1.15880246,61243.0,61242.0,0.0209141]
[1723348201231,1.15878818,61243.0,61242.0,0.0209141]
[1723348201412,1.01184077,61243.0,61242.0,0.0209141]
[1723348202241,1.01193479,61243.0,61242.0,0.0209141]
[1723348203098,1.01328295,61243.0,61242.0,0.0209141]
[1723348203631,0.93488295,61243.0,61242.0,0.0209141]
[1723348205702,0.93488353,61243.0,61242.0,0.0209141]
[1723348205955,1.88596236,61243.0,61242.0,0.0209141]
[1723348206104,3.40092801,61243.0,61242.0,0.0209141]
[1723348206303,3.75749501,61243.0,61242.0,0.0209141]
[1723348206520,3.75749501,61243.0,61222.0,0.0009163]
[1723348206521,1.143208,61231.0,61222.0,0.0009163]
[1723348206793,1.97603166,61231.0,61222.0,0.0009163]
[1723348206993,2.57015181,61231.0,61222.0,0.0009163]
[1723348207129,2.16342081,61231.0,61222.0,0.0009163]
[1723348207327,1.79633722,61231.0,61222.0,0.0009163]
[1723348207536,1.64949507,61231.0,61222.0,0.0009163]
[1723348208148,1.97612607,61231.0,61222.0,0.0009163]
[1723348209637,1.98512607,61231.0,61230.0,0.0019163]
[1723348210114,1.578261,61231.0,61230.0,0.0019163]
[1723348210340,1.64989742,61231.0,61230.0,0.0019163]
[1723348210542,1.578261,61231.0,61230.0,0.0019163]
[1723348210743,1.6488009,61231.0,61230.0,0.0019163]
[1723348211322,1.70776297,61231.0,61230.0,0.0019163]
[1723348211486,1.5855009,61231.0,61230.0,0.0019163]
[1723348211700,1.10964712,61231.0,61230.0,0.0019163]
[1723348212097,1.01371745,61231.0,61230.0,0.0019163]
[1723348212417,0.65144837,61231.0,61230.0,0.0019163]
[1723348213035,2.94339578,61231.0,61230.0,0.0019163]
[1723348213238,3.18022958,61231.0,61230.0,0.0019163]
[1723348213497,3.80956302,61231.0,61230.0,0.0019163]
[1723348213826,3.82956302,61231.0,61230.0,0.0019163]
[1723348213970,3.82183725,61231.0,61230.0,0.0019163]
[1723348214381,3.98674225,61231.0,61230.0,0.0019163]
[1723348214578,3.98688361,61231.0,61230.0,0.0019163]
[1723348215332,3.8219792,61231.0,61230.0,0.0019163]
[1723348216003,3.8129792,61231.0,61230.0,0.0009163]
[1723348216397,3.8129792,61231.0,61230.0,0.0019163]
[1723348216398,3.8269792,61231.0,61230.0,0.0019163]
[1723348216599,3.8129792,61231.0,61230.0,0.0009163]
[1723348216994,3.8269792,61231.0,61230.0,0.0009163]
[1723348217206,3.8069792,61231.0,61230.0,0.0009163]
[1723348217858,3.80593897,61231.0,61230.0,0.0009163]
[1723348219893,3.82593897,61231.0,61230.0,0.0009163]
[1723348221497,3.46494298,61231.0,61230.0,0.0009163]
[1723348222459,3.00608418,61231.0,61230.0,0.0009163]
[1723348222629,3.30373655,61231.0,61230.0,0.0009163]
[1723348222831,3.16079517,61231.0,61230.0,0.0009163]
[1723348223088,3.29380689,61231.0,61230.0,0.0009163]
[1723348223878,3.05891474,61231.0,61230.0,0.0009163]
[1723348224074,3.18070466,61231.0,61230.0,0.0009163]
[1723348224232,3.18070614,61231.0,61230.0,0.0009163]
[1723348224892,3.10060614,61231.0,61230.0,0.0009163]
[1723348225137,2.36995348,61231.0,61230.0,0.0009163]
[1723348225295,2.73225881,61231.0,61230.0,0.0009163]
[1723348225731,2.66942825,61231.0,61230.0,0.0009163]
[1723348225933,2.72898631,61231.0,61230.0,0.0009163]
[1723348226159,2.85076542,61231.0,61230.0,0.0009163]
[1723348227217,2.93687695,61231.0,61230.0,0.0009163]
[1723348228263,3.0763457,61231.0,61230.0,0.0009163]
[1723348228667,2.95456659,61231.0,61230.0,0.0009163]
[1723348229302,2.808897,61231.0,61230.0,0.0009163]
[1723348229507,2.95333002,61231.0,61230.0,0.0009163]
[1723348229868,3.07509915,61231.0,61230.0,0.0009163]
[1723348230272,2.95333002,61231.0,61230.0,0.0009163]
[1723348232565,2.59102469,61231.0,61230.0,0.0009163]
[1723348232777,2.95333943,61231.0,61230.0,0.0009163]
[1723348232979,2.75559536,61231.0,61230.0,0.0009163]
[1723348233213,2.95542812,61231.0,61230.0,0.0009163]
[1723348233419,2.66943766,61231.0,61230.0,0.0009163]
[1723348233640,2.95577275,61231.0,61230.0,0.0009163]
[1723348234456,2.96577275,61231.0,61230.0,0.0009163]
[1723348234663,2.95577275,61231.0,61230.0,0.0009163]
[1723348234871,2.7555297,61231.0,61230.0,0.0009163]
[1723348235072,2.95387185,61231.0,61230.0,0.0009163]
[1723348235495,2.61091085,61231.0,61230.0,0.0009163]
[1723348236522,2.46491085,61231.0,61230.0,0.0009163]
[1723348236933,2.46261896,61231.0,61230.0,0.0009163]
[1723348237111,2.46261903,61231.0,61230.0,0.0009163]
[1723348237308,2.46260967,61231.0,61230.0,0.0009163]
[1723348237508,2.69125167,61231.0,61230.0,0.0009163]
[1723348239453,2.61115167,61231.0,61230.0,0.0009163]
[1723348239654,2.69125167,61231.0,61230.0,0.0009163]
[1723348240320,2.60524485,61231.0,61230.0,0.0009163]
[1723348240524,2.69073544,61231.0,61230.0,0.0009163]
[1723348241679,2.83701584,61231.0,61230.0,0.0009163]
[1723348242339,3.19797204,61231.0,61230.0,0.0009163]
[1723348243000,2.6085303,61231.0,61230.0,0.0009163]
[1723348243211,2.46209344,61231.0,61230.0,0.0009163]
[1723348243407,2.6085303,61231.0,61230.0,0.0009163]
[1723348243647,3.11575573,61231.0,61230.0,0.0009163]
[1723348243971,2.83412959,61231.0,61230.0,0.0009163]
[1723348244177,2.5985022,61231.0,61230.0,0.0009163]
[1723348244542,2.59847983,61231.0,61230.0,0.0009163]
[1723348245295,2.95919886,61231.0,61230.0,0.0009163]
[1723348245726,2.96364296,61231.0,61230.0,0.0009163]
[1723348246385,2.96364469,61231.0,61230.0,0.0009163]
[1723348247648,2.7731866,61231.0,61230.0,0.0009163]
[1723348247878,2.96131986,61231.0,61230.0,0.0009163]
[1723348249971,2.09179295,61231.0,61230.0,0.0009163]
[1723348250176,2.96130128,61231.0,61230.0,0.0009163]
[1723348251174,2.87802949,61231.0,61230.0,0.0009163]
[1723348251377,3.12850681,61231.0,61230.0,0.0009163]
[1723348251917,2.96344794,61231.0,61230.0,0.0009163]
[1723348252432,3.12850681,61231.0,61230.0,0.0009163]
[1723348254830,3.12850681,61231.0,61230.0,0.0778163]
[1723348254831,2.64915153,61231.0,61230.0,0.0778163]
[1723348255072,1.98915153,61231.0,61230.0,0.0778163]
[1723348255320,1.9891675,61231.0,61230.0,0.0778163]
[1723348256484,0.64653536,61231.0,61230.0,0.1386163]
[1723348256688,0.54059148,61231.0,61230.0,0.1386163]
[1723348256845,0.54059148,61231.0,61230.0,0.14234073]
[1723348257243,0.62447092,61231.0,61230.0,0.14234073]
[1723348257443,0.63047092,61231.0,61230.0,0.14334073]
[1723348257648,0.63047092,61231.0,61230.0,0.1396163]
[1723348257845,0.63047092,61231.0,61230.0,0.14333558]
[1723348258089,0.63047092,61231.0,61230.0,0.1396163]
[1723348258346,0.63047092,61231.0,61230.0,0.14333558]
[1723348258925,0.62447092,61231.0,61230.0,0.14233558]
[1723348259325,0.52959148,61231.0,61230.0,0.14233558]
[1723348260041,0.16729704,61231.0,61230.0,0.14233558]
[1723348260440,0.51304923,61231.0,61230.0,0.14233558]
[1723348260653,0.04997604,61231.0,61230.0,0.14233558]
[1723348260844,0.51104762,61231.0,61230.0,0.1386163]
[1723348261013,0.62536862,61231.0,61230.0,0.14233558]
[1723348261211,0.52751758,61231.0,61230.0,0.14233558]
[1723348261614,0.76102362,61231.0,61230.0,0.1386163]
[1723348261817,1.19207942,61231.0,61230.0,0.1386163]
[1723348262039,1.06976562,61231.0,61230.0,0.1386163]
[1723348262238,0.84112362,61231.0,61230.0,0.1386163]
[1723348263017,0.76102362,61231.0,61230.0,0.1386163]
[1723348263225,0.88333608,61231.0,61230.0,0.1386163]
[1723348264373,0.828496,61231.0,61230.0,0.1386163]
[1723348264568,0.76552188,61231.0,61230.0,0.1386163]
[1723348264805,0.76552188,61231.0,61230.0,0.0778163]
[1723348264806,0.70620223,61231.0,61230.0,0.0778163]
[1723348264949,0.76707459,61231.0,61230.0,0.0009163]
[1723348265333,1.15953151,61231.0,61230.0,0.0009163]
[1723348266357,1.4839841,61231.0,61230.0,0.0009163]
[1723348266557,3.06091587,61231.0,61230.0,0.0009163]
[1723348266739,3.12121587,61231.0,61230.0,0.0009163]
[1723348266943,3.34985787,61231.0,61230.0,0.0009163]
[1723348267796,3.06469796,61231.0,61230.0,0.0009163]
[1723348267997,3.34563208,61231.0,61230.0,0.0009163]
[1723348268197,3.46751639,61231.0,61230.0,0.0009163]
[1723348268653,4.19219284,61231.0,61230.0,0.0009163]
[1723348268856,4.19119284,61231.0,61230.0,0.0009163]
[1723348269053,3.46651639,61231.0,61230.0,0.0009163]
[1723348269259,3.35663208,61231.0,61230.0,0.0019163]
[1723348269461,3.3587798,61231.0,61230.0,0.0019163]
[1723348269721,3.1181378,61231.0,61230.0,0.0009163]
[1723348269884,3.1182209,61231.0,61230.0,0.0009163]
[1723348270066,3.1419778,61231.0,61230.0,0.0019163]
[1723348270279,3.3706198,61231.0,61230.0,0.0019163]
[1723348271482,3.36949613,61231.0,61230.0,0.0019163]
[1723348272280,3.36949613,61231.0,61222.0,0.0009163]
[1723348272281,1.059024,61223.0,61222.0,0.0009163]
[1723348272508,3.69127079,61223.0,61222.0,0.0009163]
[1723348272715,4.75687403,61223.0,61222.0,0.0009163]
[1723348272920,1.059208,61212.0,61211.0,0.0009163]
[1723348273115,2.18889504,61212.0,61211.0,0.0009163]
[1723348273315,3.31915823,61212.0,61211.0,0.0009163]
[1723348273586,2.81202032,61212.0,61211.0,0.0009163]
[1723348273710,3.4399589,61212.0,61211.0,0.0009163]
[1723348274757,3.15791763,61212.0,61211.0,0.0009163]
[1723348274913,3.4264148,61212.0,61211.0,0.0009163]
[1723348275335,3.4264148,61212.0,61205.0,0.0009163]
[1723348275336,0.830562,61207.0,61205.0,0.0009163]
[1723348275536,1.20615098,61207.0,61205.0,0.0009163]
[1723348275818,2.52888711,61207.0,61205.0,0.0009163]
[1723348276082,3.02632569,61207.0,61205.0,0.0009163]
[1723348276281,3.03632569,61207.0,61205.0,0.0009163]
[1723348276489,3.06532569,61207.0,61205.0,0.0009163]
[1723348276693,3.15194143,61207.0,61205.0,0.0009163]
[1723348276862,3.12194577,61207.0,61205.0,0.0009163]
[1723348277077,3.28977539,61207.0,61205.0,0.0009163]
[1723348277303,3.34297498,61207.0,61205.0,0.0009163]
[1723348277666,3.12562569,61207.0,61205.0,0.0009163]
[1723348277979,3.34285832,61207.0,61205.0,0.0009163]
[1723348278177,3.09562569,61207.0,61205.0,0.0009163]
[1723348278391,2.54033105,61207.0,61205.0,0.0009163]
[1723348278596,2.53037047,61207.0,61205.0,0.0009163]
[1723348278796,2.44927047,61207.0,61205.0,0.0009163]
[1723348281264,2.44927098,61207.0,61205.0,0.0009163]
[1723348281630,2.58111796,61207.0,61205.0,0.0009163]
[1723348281947,2.45927098,61207.0,61205.0,0.0009163]
[1723348282166,2.44927098,61207.0,61205.0,0.0009163]
[1723348282368,2.57112,61207.0,61206.0,0.004591]
[1723348282571,2.54672999,61207.0,61206.0,0.004591]
[1723348284533,2.44927098,61207.0,61206.0,0.004591]
[1723348284734,2.44926032,61207.0,61206.0,0.004591]
[1723348284934,2.15988476,61207.0,61206.0,0.004591]
[1723348285162,2.44926047,61207.0,61206.0,0.004591]
[1723348285363,2.08681434,61207.0,61206.0,0.004591]
[1723348285595,2.08790174,61207.0,61206.0,0.004591]
[1723348285796,0.82238,61207.0,61206.0,0.148091]
[1723348286007,0.17238,61207.0,61206.0,0.148091]
[1723348286183,0.49914,61207.0,61206.0,0.148091]
[1723348286557,0.17238,61207.0,61206.0,0.148091]
[1723348286759,0.009,61207.0,61206.0,0.148091]
[1723348287160,0.009,61207.0,61206.0,0.311473]
[1723348287362,0.009,61207.0,61206.0,0.638238]
[1723348287732,0.2446059,61208.0,61206.0,0.311473]
[1723348287928,0.2446059,61208.0,61207.0,0.0823]
[1723348288129,0.2446059,61208.0,61207.0,0.08596432]
[1723348288781,0.2446059,61208.0,61207.0,0.14716432]
[1723348288985,0.2446059,61208.0,61207.0,0.31054432]
[1723348289158,0.2446059,61208.0,61207.0,0.14716432]
[1723348289847,0.2476059,61208.0,61207.0,0.14716432]
[1723348290548,0.2476059,61208.0,61207.0,0.31054432]
[1723348290826,0.2476059,61208.0,61207.0,0.63730432]
[1723348291440,0.2476059,61208.0,61207.0,0.31054432]
[1723348293095,0.2476059,61208.0,61207.0,0.63730432]
[1723348293209,0.2476059,61208.0,61207.0,0.96406432]
[1723348293411,0.003,61208.0,61207.0,0.96406432]
[1723348294032,0.000832,61211.0,61210.0,0.490114]
[1723348294235,0.000832,61211.0,61210.0,0.960357]
[1723348294441,0.000832,61211.0,61210.0,0.96399681]
[1723348295407,0.000832,61211.0,61210.0,0.14713981]
[1723348295953,0.000832,61211.0,61210.0,0.31051081]
[1723348296565,0.001832,61211.0,61210.0,0.14713981]
[1723348296765,0.000832,61211.0,61210.0,0.14713981]
[1723348296966,0.000832,61211.0,61210.0,0.31051081]
[1723348297217,0.001832,61211.0,61210.0,0.31051081]
[1723348297622,0.05465522,61211.0,61210.0,0.31051081]
[1723348297800,0.001832,61211.0,61210.0,0.14713981]
[1723348299160,0.000832,61211.0,61210.0,0.14713981]
[1723348299784,0.001832,61211.0,61210.0,0.31051081]
[1723348299941,0.000832,61211.0,61210.0,0.31051081]
[1723348300930,0.000832,61211.0,61210.0,0.14713981]
[1723348301113,0.164201,61211.0,61210.0,0.00363981]
[1723348301320,0.490939,61211.0,61210.0,0.00363981]
[1723348301589,0.163377,61208.0,61207.0,0.0009152]
[1723348301944,0.490131,61208.0,61207.0,0.0009152]
[1723348302157,0.65394592,61208.0,61207.0,0.0009152]
[1723348302564,1.03771112,61208.0,61207.0,0.0009152]
[1723348302961,0.2203882,61208.0,61207.0,0.0794152]
[1723348303204,0.54689163,61208.0,61207.0,0.0794152]
[1723348303634,0.54689163,61208.0,61207.0,0.0804152]
[1723348303844,0.54689163,61208.0,61207.0,0.0794152]
[1723348304327,0.22013763,61208.0,61207.0,0.0804152]
[1723348304475,0.21858827,61208.0,61207.0,0.0794152]
[1723348304677,0.54534227,61208.0,61207.0,0.0794152]
[1723348304899,0.54634227,61208.0,61207.0,0.0794152]
[1723348306336,0.54634227,61208.0,61207.0,0.0009152]
[1723348306750,0.491131,61208.0,61207.0,0.0009152]
[1723348306916,0.54240472,61208.0,61207.0,0.00455791]
[1723348307275,0.54332094,61208.0,61207.0,0.00455793]
[1723348310329,0.491131,61208.0,61207.0,0.00455793]
[1723348310530,0.54516649,61208.0,61207.0,0.00455793]
[1723348313369,0.21841249,61208.0,61207.0,0.00455793]
[1723348314417,0.21841249,61208.0,61207.0,0.06785793]
[1723348314617,0.05503549,61208.0,61207.0,0.30973793]
[1723348315884,0.05503549,61208.0,61207.0,0.96325793]
[1723348316320,0.05403549,61208.0,61207.0,0.96325793]
[1723348316528,0.2401869,61210.0,61208.0,0.326754]
[1723348316653,0.04867658,61209.0,61208.0,0.490131]
[1723348316862,0.04867658,61209.0,61208.0,0.4937735]
[1723348317453,0.2401869,61210.0,61209.0,0.490123]
[1723348317652,0.2401869,61210.0,61209.0,0.49376504]
[1723348318060,0.28928249,61210.0,61209.0,0.49376504]
[1723348318273,0.28928249,61210.0,61209.0,0.82051404]
[1723348318478,0.28928249,61210.0,61209.0,0.96231404]
[1723348319605,0.28928249,61210.0,61209.0,0.96331404]
[1723348319868,0.28928249,61210.0,61209.0,1.28906304]
[1723348320188,0.29028249,61210.0,61209.0,1.29006304]
[1723348320393,0.2411869,61210.0,61209.0,1.41219452]
[1723348320799,0.2401869,61210.0,61209.0,1.41119452]
[1723348321323,0.2411869,61210.0,61209.0,1.41219452]
[1723348322276,0.2411869,61210.0,61209.0,1.57600944]
[1723348322481,0.2401869,61210.0,61209.0,1.57500944]
[1723348322792,0.2401869,61210.0,61209.0,1.57600944]
[1723348322793,0.2411869,61210.0,61209.0,1.57600944]
[1723348323015,0.2411869,61210.0,61209.0,1.57500944]
[1723348323181,0.2401869,61210.0,61209.0,1.57500944]
[1723348323375,0.2411869,61210.0,61209.0,1.57600515]
[1723348323559,0.2411869,61210.0,61209.0,1.90275415]
[1723348323775,0.2411869,61210.0,61209.0,1.96568321]
[1723348324760,0.001,61210.0,61209.0,1.96768321]
[1723348325270,0.001,61210.0,61209.0,2.06768321]
[1723348325695,0.000832,61211.0,61210.0,1.621543]
[1723348325908,0.000832,61211.0,61210.0,2.05248511]
[1723348326116,0.000832,61211.0,61210.0,2.05609308]
[1723348327047,0.000832,61211.0,61210.0,2.38283608]
[1723348327247,0.001832,61211.0,61210.0,2.46097522]
[1723348327449,0.000832,61211.0,61210.0,2.10423222]
[1723348327681,0.000832,61211.0,61210.0,2.03440786]
[1723348327900,0.000832,61211.0,61210.0,2.03421621]
[1723348329425,0.001832,61211.0,61210.0,1.58447321]
[1723348329623,0.000832,61211.0,61210.0,1.57447321]
[1723348330035,0.001832,61211.0,61210.0,1.58447321]
[1723348330216,0.000832,61211.0,61210.0,1.57447321]
[1723348330658,0.001832,61211.0,61210.0,1.58395442]
[1723348330853,0.001832,61211.0,61210.0,1.57395442]
[1723348331258,0.002832,61211.0,61210.0,1.58395442]
[1723348332568,0.000832,61211.0,61210.0,1.57395442]
[1723348332767,0.000832,61211.0,61210.0,1.58395442]
[1723348332967,0.001832,61211.0,61210.0,1.58395442]
[1723348333719,0.001832,61211.0,61210.0,1.29840797]
[1723348334731,0.001832,61211.0,61210.0,1.15720797]
[1723348337933,0.001832,61211.0,61210.0,1.37860797]
[1723348338131,0.001832,61211.0,61210.0,1.54242289]
[1723348338513,0.001832,61211.0,61210.0,1.56542289]
[1723348339336,0.001832,61211.0,61210.0,1.68727548]
[1723348340314,0.001832,61211.0,61210.0,1.69727548]
[1723348341344,0.001832,61211.0,61210.0,1.57542289]
[1723348341522,0.001832,61211.0,61210.0,1.69719531]
[1723348341957,0.001832,61211.0,61210.0,2.04393831]
[1723348342158,0.001832,61211.0,61210.0,2.02393831]
[1723348343343,0.001832,61211.0,61210.0,2.04393831]
[1723348344000,0.001832,61211.0,61210.0,2.02393831]
[1723348344432,0.001832,61211.0,61210.0,2.04393831]
[1723348344913,0.001832,61211.0,61210.0,1.92216589]
[1723348345140,0.001832,61211.0,61210.0,2.04483208]
[1723348346160,0.001832,61211.0,61210.0,2.02483208]
[1723348346362,0.068632,61229.0,61225.0,0.16333]
[1723348346595,0.05650142,61228.0,61225.0,0.16333]
[1723348346719,0.05650142,61228.0,61226.0,0.00360704]
[1723348347399,0.05650142,61228.0,61226.0,0.16693604]
[1723348347966,0.05650142,61228.0,61226.0,0.00360704]
[1723348348171,0.21982542,61228.0,61226.0,0.00360704]
[1723348348380,0.05650142,61227.0,61224.0,0.163332]
[1723348348548,0.163324,61228.0,61224.0,0.163332]
[1723348348549,0.05650142,61226.0,61224.0,0.163332]
[1723348348734,0.005,61228.0,61225.0,0.163331]
[1723348348946,0.05595755,61227.0,61225.0,0.163331]
[1723348349557,0.05595755,61226.0,61225.0,0.163331]
[1723348350341,0.068632,61229.0,61226.0,0.163328]
[1723348350516,0.05621014,61228.0,61225.0,0.163331]
[1723348351297,0.231953,61229.0,61225.0,0.163331]
[1723348351298,0.004,61227.0,61225.0,0.163331]
[1723348351519,0.05594066,61226.0,61225.0,0.163331]
[1723348351971,0.05894066,61228.0,61225.0,0.163331]
[1723348352218,0.003,61228.0,61225.0,0.163331]
[1723348352420,0.05690394,61227.0,61225.0,0.163331]
[1723348352641,0.05790394,61226.0,61225.0,0.163331]
[1723348352802,0.05790394,61226.0,61223.0,0.163336]
[1723348353025,0.05690394,61225.0,61224.0,0.163334]
[1723348354002,0.0768,61223.0,61214.0,0.48950078]
[1723348354208,0.05690394,61222.0,61215.0,0.44855296]
[1723348354475,0.22024394,61222.0,61218.0,0.163349]
[1723348354620,0.22024794,61221.0,61216.0,0.163354]
[1723348354817,0.13370394,61220.0,61217.0,0.163353]
[1723348355020,0.05690394,61219.0,61218.0,0.16335]
[1723348355715,0.0768,61220.0,61218.0,0.16335]
[1723348355929,0.05782855,61219.0,61217.0,0.006]
[1723348356119,0.05782855,61219.0,61217.0,0.169351]
[1723348356329,0.05782855,61219.0,61217.0,0.163351]
[1723348356529,0.05782855,61219.0,61218.0,0.16335]
[1723348357187,0.05782855,61219.0,61218.0,0.17135]
[1723348357188,0.05882855,61219.0,61218.0,0.17135]
[1723348357391,0.05882855,61219.0,61218.0,0.17495183]
[1723348357793,0.05882855,61219.0,61218.0,0.89185383]
[1723348358166,0.05882855,61219.0,61218.0,1.01352436]
[1723348358798,0.05882855,61219.0,61218.0,0.95002436]
[1723348359009,0.19982855,61219.0,61218.0,0.17495183]
[1723348359286,0.19982855,61219.0,61218.0,0.50165283]
[1723348359532,0.19814827,61219.0,61218.0,0.17495183]
[1723348360802,0.05714827,61219.0,61218.0,0.50165283]
[1723348361736,0.05714827,61219.0,61218.0,0.17495183]
[1723348361875,0.11944827,61219.0,61218.0,0.17495183]
[1723348362075,0.19594827,61219.0,61218.0,0.17495183]
[1723348362287,0.24483793,61219.0,61218.0,0.01160183]
[1723348362491,0.35929527,61219.0,61218.0,0.01160183]
[1723348362691,0.35929527,61219.0,61218.0,0.008]
[1723348362917,0.43262977,61219.0,61218.0,0.008]
[1723348363155,0.44081451,61219.0,61218.0,0.008]
[1723348363329,0.76750951,61219.0,61218.0,0.008]
[1723348363534,0.629842,61219.0,61218.0,0.008]
[1723348363735,0.69494674,61219.0,61218.0,0.008]
[1723348363931,1.05723262,61219.0,61218.0,0.008]
[1723348364341,1.15501195,61219.0,61218.0,0.008]
[1723348364771,1.05482881,61219.0,61218.0,0.008]
[1723348365649,1.05486193,61219.0,61218.0,0.008]
[1723348366028,1.05302459,61219.0,61218.0,0.008]
[1723348366680,1.05310023,61219.0,61218.0,0.008]
[1723348369944,1.17552051,61219.0,61218.0,0.008]
[1723348370080,1.17550175,61219.0,61218.0,0.0116105]
[1723348370290,0.84976464,61219.0,61218.0,0.0116105]
[1723348370495,1.17645964,61219.0,61218.0,0.0116105]
[1723348370830,1.17468174,61219.0,61218.0,0.0125257]
[1723348371245,0.84798674,61219.0,61218.0,0.0125257]
[1723348371972,1.11456252,61219.0,61218.0,0.0125257]
[1723348372299,1.17486341,61219.0,61218.0,0.0125257]
[1723348372499,1.05244667,61219.0,61218.0,0.0125257]
[1723348373528,1.17485644,61219.0,61218.0,0.0125257]
[1723348374007,0.99214578,61219.0,61218.0,0.0125257]
[1723348374323,1.05294924,61219.0,61218.0,0.0125257]
[1723348374838,1.05295459,61219.0,61218.0,0.0125257]
[1723348375015,1.37964959,61219.0,61218.0,0.0125257]
[1723348375391,1.37964959,61219.0,61218.0,0.0089152]
[1723348375392,1.52656112,61219.0,61218.0,0.0089152]
[1723348375591,1.37964959,61219.0,61218.0,0.0089152]
[1723348376001,1.37864959,61219.0,61218.0,0.0009152]
[1723348376202,1.37864959,61219.0,61218.0,0.0059152]
[1723348376564,2.10866191,61219.0,61218.0,0.0059152]
[1723348376763,2.33804996,61219.0,61218.0,0.0059152]
[1723348377401,2.33527642,61219.0,61218.0,0.0059152]
[1723348377603,2.33527642,61219.0,61218.0,0.0009152]
[1723348378412,2.18836489,61219.0,61218.0,0.0009152]
[1723348378822,2.19236489,61219.0,61218.0,0.0009152]
[1723348379185,2.18836489,61219.0,61218.0,0.0009152]
[1723348379362,2.18839362,61219.0,61218.0,0.0009152]
[1723348379508,2.19439362,61219.0,61218.0,0.0019152]
[1723348380792,2.9037656,61219.0,61218.0,0.0019152]
[1723348381378,2.3309102,61219.0,61218.0,0.0019152]
[1723348381574,2.19199985,61219.0,61218.0,0.0019152]
[1723348382010,2.33140713,61219.0,61218.0,0.0019152]
[1723348382211,1.48199985,61219.0,61218.0,0.0019152]
[1723348382667,1.41968769,61219.0,61218.0,0.0019152]
[1723348383183,1.09299269,61219.0,61218.0,0.0019152]
[1723348383493,1.3615627,61219.0,61218.0,0.0019152]
[1723348383755,1.42128111,61219.0,61218.0,0.0019152]
[1723348384582,1.09458611,61219.0,61218.0,0.0019152]
[1723348385123,0.13911717,61219.0,61218.0,0.3066652]
[1723348385398,0.06571841,61219.0,61218.0,0.31029429]
[1723348386006,0.06571841,61219.0,61218.0,0.14694429]
[1723348386310,0.06571841,61219.0,61218.0,0.30929429]
[1723348386311,0.10464971,61219.0,61218.0,0.30929429]
[1723348386514,0.05571841,61219.0,61218.0,0.30929429]
[1723348386654,0.07339876,61220.0,61218.0,0.31129429]
[1723348386854,0.07339876,61220.0,61218.0,0.00654429]
[1723348387151,0.0978678,61219.0,61218.0,0.00654429]
[1723348387358,0.36229814,61219.0,61218.0,0.00654429]
[1723348387560,0.46017134,61219.0,61218.0,0.00654429]
[1723348387921,0.46017134,61219.0,61218.0,0.00454429]
[1723348388506,0.0998732,61220.0,61218.0,0.00454429]
[1723348388879,0.46017209,61219.0,61218.0,0.00454429]
[1723348389112,1.03041409,61219.0,61218.0,0.00454429]
[1723348389264,0.93254089,61219.0,61218.0,0.0009152]
[1723348389501,1.05487564,61219.0,61218.0,0.0009152]
[1723348389700,1.05487564,61219.0,61218.0,0.0019152]
[1723348390262,0.93254089,61219.0,61218.0,0.0009152]
[1723348390849,0.93254089,61219.0,61218.0,0.00453879]
[1723348391052,0.93254089,61219.0,61218.0,0.0009152]
[1723348391256,1.05490027,61219.0,61218.0,0.00453879]
[1723348391587,0.93255288,61219.0,61218.0,0.0009152]
[1723348391754,1.05492331,61219.0,61218.0,0.0009152]
[1723348392431,0.93255288,61219.0,61218.0,0.0009152]
[1723348392837,0.54041578,61219.0,61218.0,0.0009152]
[1723348393036,0.163347,61219.0,61218.0,0.0009152]
[1723348393216,0.07342542,61219.0,61218.0,0.00453879]
[1723348393421,0.07342542,61219.0,61218.0,0.0009152]
[1723348393836,0.07342542,61219.0,61218.0,0.06833266]
[1723348395730,0.07342542,61219.0,61218.0,0.00453266]
[1723348395731,0.62354134,61219.0,61218.0,0.00453266]
[1723348396113,0.163347,61219.0,61218.0,0.00453266]
[1723348396316,0.46021804,61219.0,61218.0,0.00453266]
[1723348396474,0.46022913,61219.0,61218.0,0.00453266]
[1723348396981,0.36229247,61219.0,61218.0,0.00453266]
[1723348397182,0.36228345,61219.0,61218.0,0.00453266]
[1723348397353,0.62356711,61219.0,61218.0,0.00453266]
[1723348397754,0.46022011,61219.0,61218.0,0.16788266]
[1723348397962,0.09793666,61220.0,61218.0,0.08213266]
[1723348398357,0.46021755,61220.0,61218.0,0.08213266]
[1723348398560,0.46021755,61219.0,61218.0,0.08213266]
[1723348398779,0.36228089,61219.0,61218.0,0.08213266]
[1723348398967,0.46021755,61220.0,61218.0,0.08213266]
[1723348399167,0.09893666,61220.0,61218.0,0.08213266]
[1723348399398,0.09793666,61220.0,61218.0,0.08213266]
[1723348399628,0.09793666,61220.0,61218.0,0.24548066]
[1723348399629,0.46021476,61220.0,61218.0,0.24548066]
[1723348399757,0.09793666,61220.0,61218.0,0.08213266]
[1723348400277,0.46121268,61220.0,61218.0,0.08213266]
[1723348400482,0.09893666,61220.0,61218.0,0.08213266]
[1723348400803,0.36227659,61219.0,61218.0,0.08213266]
[1723348401166,0.09796874,61220.0,61218.0,0.08213266]
[1723348401964,0.46024472,61220.0,61218.0,0.08313266]
[1723348402163,0.36227598,61219.0,61218.0,0.08313266]
[1723348402562,0.46024472,61220.0,61218.0,0.08313266]
[1723348403209,0.46024472,61220.0,61218.0,0.08213266]
[1723348403522,0.46024472,61220.0,61218.0,0.08313266]
[1723348403841,0.46024472,61219.0,61218.0,0.08313266]
[1723348404007,0.09796874,61219.0,61218.0,0.08313266]
[1723348404453,0.09796874,61219.0,61218.0,0.08213266]
[1723348405180,0.09796874,61219.0,61218.0,0.24548266]
[1723348405384,0.46025708,61219.0,61218.0,0.24548266]
[1723348405570,0.09798047,61219.0,61218.0,0.24548266]
[1723348405792,0.09798397,61219.0,61218.0,0.24548266]
[1723348405931,0.09798397,61219.0,61218.0,0.08213266]
[1723348406276,0.16934751,61219.0,61218.0,0.08213266]
[1723348406479,0.53162412,61219.0,61218.0,0.08213266]
[1723348407127,0.53162412,61219.0,61218.0,0.57218366]
[1723348407318,0.53245612,61219.0,61218.0,0.57218366]
[1723348407718,0.53245612,61219.0,61218.0,0.24548266]
[1723348409106,0.46109258,61219.0,61218.0,0.24548266]
[1723348409246,0.53155803,61219.0,61218.0,0.24548266]
[1723348409882,0.5315655,61219.0,61218.0,0.24548266]
[1723348410078,0.46110005,61219.0,61218.0,0.24548266]